bitfinex/quotes_BTCUSD_20250320
["timestamp","ask_amount","ask_price","bid_price","bid_amount"]
[1742476915183,0.25094498,85367.0,85366.0,0.1318]
[1742476916151,0.25094498,85367.0,85366.0,0.001]
[1742476916901,0.26931168,85367.0,85366.0,0.001]
[1742476918883,0.246004,85364.0,85363.0,0.0003388]
[1742476919455,0.25095298,85364.0,85363.0,0.0003388]
[1742476921281,0.25095298,85364.0,85363.0,0.0013388]
[1742476923759,0.2727222,85364.0,85363.0,0.0013388]
[1742476924913,0.25095298,85364.0,85363.0,0.0013388]
[1742476928562,0.26931963,85364.0,85363.0,0.0013388]
[1742476930702,0.02331563,85364.0,85363.0,0.56740683]
[1742476930904,0.00494898,85364.0,85363.0,0.57912083]
[1742476931106,0.23428,85368.0,85364.0,0.234289]
[1742476931340,0.23428,85368.0,85365.0,0.11957503]
[1742476931515,0.00490393,85367.0,85365.0,0.11957503]
[1742476931711,0.00490393,85367.0,85365.0,0.35386103]
[1742476931929,0.234278,85369.0,85367.0,0.234282]
[1742476932078,0.234274,85370.0,85368.0,0.11957503]
[1742476932308,0.234272,85371.0,85369.0,0.1291]
[1742476932485,0.234272,85371.0,85370.0,0.11957503]
[1742476933137,0.245985,85371.0,85370.0,0.11957503]
[1742476933517,0.245985,85371.0,85370.0,0.11857503]
[1742476933721,0.26435064,85371.0,85370.0,0.25041503]
[1742476934001,0.26435064,85371.0,85370.0,0.25141503]
[1742476934660,0.26925457,85371.0,85370.0,0.25141503]
[1742476935658,0.26925457,85371.0,85370.0,0.25341503]
[1742476940838,0.29112744,85371.0,85370.0,0.25341503]
[1742476941301,0.29112744,85371.0,85370.0,0.12157503]
[1742476941506,0.29112744,85371.0,85370.0,0.25341503]
[1742476942399,0.29112744,85371.0,85370.0,1.75341503]
[1742476942964,0.29112744,85371.0,85370.0,1.75333503]
[1742476945374,0.29112744,85371.0,85370.0,0.25333503]
[1742476945735,0.29112744,85371.0,85370.0,1.75333503]
[1742476946172,0.29112744,85371.0,85370.0,1.62157503]
[1742476946369,0.29112744,85371.0,85370.0,1.75321503]
[1742476948321,0.29112744,85371.0,85370.0,0.003]
[1742476948464,0.2727618,85371.0,85370.0,0.003]
[1742476951373,0.29112805,85371.0,85370.0,0.003]
[1742476952425,0.29112805,85371.0,85370.0,0.0031695]
[1742476954411,0.26925518,85371.0,85370.0,0.0031695]
[1742476955783,0.26925518,85371.0,85370.0,0.12274453]
[1742476958821,0.26925518,85371.0,85370.0,1.62274453]
[1742476960120,0.25754118,85371.0,85370.0,1.62274453]
[1742476961793,0.25754118,85371.0,85370.0,0.12274453]
[1742476962449,0.25754118,85371.0,85370.0,1.62274453]
[1742476963859,0.25754118,85371.0,85370.0,1.75410453]
[1742476964909,0.26925418,85371.0,85370.0,1.75410453]
[1742476965520,0.26925418,85371.0,85370.0,0.25410453]
[1742476965973,0.26959318,85371.0,85370.0,0.25410453]
[1742476966229,0.26959318,85371.0,85370.0,1.75410453]
[1742476966368,0.26959318,85371.0,85370.0,0.25410453]
[1742476970426,0.26959318,85371.0,85370.0,1.75410453]
[1742476971106,0.2914985,85371.0,85370.0,1.75410453]
[1742476971280,0.0455145,85371.0,85370.0,1.75410453]
[1742476971683,0.04061057,85371.0,85370.0,1.75410453]
[1742476971983,0.27488157,85371.0,85370.0,1.75410453]
[1742476972305,0.27979061,85371.0,85370.0,1.75410453]
[1742476972729,0.27979061,85371.0,85370.0,0.0031695]
[1742476972730,0.34120361,85371.0,85370.0,0.0031695]
[1742476972935,0.32283736,85371.0,85370.0,0.0031695]
[1742476973148,0.40383736,85371.0,85370.0,0.0031695]
[1742476973743,0.40383736,85371.0,85370.0,0.0011695]
[1742476975383,0.40383736,85371.0,85370.0,0.0021695]
[1742476975948,0.42220391,85371.0,85370.0,0.0021695]
[1742476976607,0.42220391,85371.0,85370.0,0.0011695]
[1742476976983,0.42220391,85371.0,85370.0,0.0001695]
[1742476992617,0.84277894,85371.0,85370.0,5e-07]
[1742476992822,0.674904,85364.0,85363.0,3e-07]
[1742476993016,0.67978024,85364.0,85363.0,3e-07]
[1742476993628,0.70168556,85364.0,85363.0,3e-07]
[1742476994648,0.82126059,85364.0,85363.0,3e-07]
[1742476995427,0.82526059,85364.0,85363.0,3e-07]
[1742476995780,0.84363079,85364.0,85363.0,3e-07]
[1742476996007,0.84763079,85364.0,85363.0,3e-07]
[1742476998615,0.375339,85352.0,85351.0,8e-07]
[1742476998819,0.49973828,85352.0,85351.0,8e-07]
[1742476999406,0.51810991,85352.0,85351.0,8e-07]
[1742476999607,0.54149313,85352.0,85351.0,8e-07]
[1742476999806,0.56339845,85352.0,85351.0,8e-07]
[1742477000037,0.57517015,85352.0,85351.0,8e-07]
[1742477000238,0.57617015,85352.0,85351.0,8e-07]
[1742477001569,0.57517015,85352.0,85351.0,8e-07]
[1742477001769,0.57917015,85352.0,85351.0,8e-07]
[1742477005842,0.57717015,85352.0,85351.0,8e-07]
[1742477006556,0.57917015,85352.0,85351.0,8e-07]
[1742477007967,0.57717015,85352.0,85351.0,8e-07]
[1742477008215,0.57917015,85352.0,85351.0,8e-07]
[1742477008543,0.99874518,85352.0,85351.0,8e-07]
[1742477008761,0.99874518,85352.0,85335.0,1e-07]
[1742477008762,0.291985,85336.0,85335.0,1e-07]
[1742477008990,0.71156003,85336.0,85335.0,1e-07]
[1742477009262,0.71636884,85336.0,85335.0,1e-07]
[1742477009509,0.79516884,85336.0,85335.0,1e-07]
[1742477009737,0.81707416,85336.0,85335.0,1e-07]
[1742477009963,0.84100427,85336.0,85335.0,1e-07]
[1742477010188,0.84100427,85336.0,85335.0,3.7e-07]
[1742477011367,0.84500427,85336.0,85335.0,3.7e-07]
[1742477011632,0.96650427,85336.0,85335.0,3.7e-07]
[1742477011871,0.8633814,85336.0,85335.0,3.7e-07]
[1742477012099,0.8673814,85336.0,85335.0,3.7e-07]
[1742477013266,0.8923814,85336.0,85335.0,3.7e-07]
[1742477014725,1.0239014,85336.0,85335.0,3.7e-07]
[1742477020647,0.9989014,85336.0,85335.0,3.7e-07]
[1742477020854,1.0239014,85336.0,85335.0,3.7e-07]
[1742477024504,1.0239014,85336.0,85335.0,9.7e-07]
[1742477024705,0.62310637,85336.0,85335.0,9.7e-07]
[1742477024932,0.62344557,85336.0,85335.0,9.7e-07]
[1742477025084,0.246111,85327.0,85326.0,0.07600097]
[1742477025285,0.25084756,85327.0,85326.0,0.07600097]
[1742477026289,0.27267612,85327.0,85326.0,0.07600097]
[1742477026671,0.27367612,85327.0,85326.0,0.07600097]
[1742477027535,0.27567612,85327.0,85326.0,0.07600097]
[1742477027942,0.25184756,85327.0,85326.0,0.07600097]
[1742477028243,0.27122381,85327.0,85326.0,0.07600097]
[1742477029199,0.246126,85322.0,85321.0,0.001]
[1742477029603,0.2508758,85322.0,85321.0,0.001]
[1742477037454,0.2508758,85322.0,85321.0,0.0011696]
[1742477044300,0.26925404,85322.0,85321.0,0.0011696]
[1742477046443,0.26925404,85322.0,85321.0,6e-07]
[1742477046444,0.34755404,85322.0,85321.0,6e-07]
[1742477047210,0.34755404,85322.0,85316.0,1e-07]
[1742477047211,0.246139,85317.0,85316.0,1e-07]
[1742477047429,0.29798993,85317.0,85316.0,1e-07]
[1742477047797,0.90407989,85317.0,85316.0,1e-07]
[1742477048086,0.90407989,85317.0,85268.0,0.4149]
[1742477048087,0.011725,85283.0,85268.0,0.4149]
[1742477048291,0.25098105,85283.0,85267.0,0.13136]
[1742477048445,0.25098105,85283.0,85266.0,0.0590842]
[1742477048653,0.25098105,85283.0,85268.0,1.5]
[1742477048854,0.26936637,85283.0,85268.0,1.5]
[1742477049190,0.2812918,85283.0,85268.0,1.5]
[1742477049392,0.26936637,85283.0,85268.0,1.5]
[1742477049702,0.26978275,85283.0,85268.0,1.734553]
[1742477050034,0.26978275,85283.0,85268.0,1.5]
[1742477051154,0.26978275,85283.0,85274.0,0.082]
[1742477051283,0.26978275,85283.0,85268.0,1.63132]
[1742477051490,0.25139743,85283.0,85282.0,5e-07]
[1742477052272,0.295353,85278.0,85277.0,9e-07]
[1742477052536,0.30001515,85278.0,85277.0,9e-07]
[1742477053592,0.30101515,85278.0,85277.0,9e-07]
[1742477054233,0.30201515,85278.0,85277.0,9e-07]
[1742477054433,0.43997832,85278.0,85277.0,9e-07]
[1742477054652,0.73997832,85278.0,85277.0,9e-07]
[1742477055264,0.73997832,85278.0,85261.0,9e-07]
[1742477055265,0.546299,85262.0,85261.0,9e-07]
[1742477055414,0.546299,85262.0,85250.0,0.0128203]
[1742477055415,0.246331,85251.0,85250.0,2e-07]
[1742477055619,0.25096392,85251.0,85250.0,2e-07]
[1742477056042,0.26935769,85251.0,85250.0,2e-07]
[1742477056260,0.76933272,85251.0,85250.0,2e-07]
[1742477056912,0.77474885,85251.0,85250.0,2e-07]
[1742477057163,0.24637,85237.0,85236.0,2e-07]
[1742477057568,0.25093282,85237.0,85236.0,2e-07]
[1742477057861,0.26932848,85237.0,85236.0,2e-07]
[1742477058293,0.02295848,85237.0,85236.0,0.11957523]
[1742477058495,0.00295848,85237.0,85236.0,1.43601008]
[1742477058717,0.00541613,85251.0,85241.0,0.011731]
[1742477058915,0.00541613,85251.0,85249.0,0.246334]
[1742477059117,0.00541613,85251.0,85250.0,0.32809503]
[1742477059255,0.00541613,85251.0,85250.0,0.56269903]
[1742477059459,0.00041613,85251.0,85250.0,0.32809503]
[1742477059685,0.00541613,85251.0,85250.0,0.32609503]
[1742477059881,0.00548972,85251.0,85250.0,0.32609503]
[1742477060419,0.00548972,85251.0,85250.0,1.82709503]
[1742477060620,0.00548972,85251.0,85250.0,0.32709503]
[1742477061027,0.00548972,85251.0,85250.0,0.56169903]
[1742477061327,0.00548972,85251.0,85250.0,0.32709503]
[1742477062352,0.00548972,85251.0,85250.0,0.33882503]
[1742477062674,0.00548972,85251.0,85250.0,0.32709503]
[1742477062884,0.00041613,85251.0,85250.0,0.32709503]
[1742477063073,0.00548972,85251.0,85250.0,0.32709503]
[1742477063281,0.01214613,85251.0,85250.0,0.32709503]
[1742477063422,0.01721972,85251.0,85250.0,0.13324]
[1742477064367,0.00548972,85251.0,85250.0,0.13324]
[1742477064827,0.01721972,85251.0,85250.0,0.13324]
[1742477066399,0.0356118,85251.0,85250.0,0.13324]
[1742477066566,0.2702128,85251.0,85250.0,0.13424]
[1742477066774,0.2702128,85251.0,85250.0,0.13324]
[1742477066933,0.2702128,85251.0,85250.0,0.13224]
[1742477067136,0.2702128,85251.0,85250.0,0.13424]
[1742477068208,0.2702128,85251.0,85250.0,0.002]
[1742477069136,0.2702128,85251.0,85250.0,0.001]
[1742477069537,0.246368,85238.0,85237.0,0.13204]
[1742477069851,0.246368,85238.0,85237.0,0.25161503]
[1742477070047,0.24637,85237.0,85236.0,0.5584898]
[1742477070638,0.25095035,85237.0,85236.0,0.5584898]
[1742477071251,0.25095035,85237.0,85236.0,0.5594898]
[1742477072539,0.25195035,85237.0,85236.0,0.5604898]
[1742477073335,0.25228955,85237.0,85236.0,0.5604898]
[1742477074515,0.25228955,85237.0,85236.0,0.5594898]
[1742477074923,0.25228955,85237.0,85236.0,0.5604898]
[1742477075122,0.25128955,85237.0,85236.0,0.5594898]
[1742477075568,0.01665055,85237.0,85236.0,0.5604898]
[1742477075995,0.0120702,85237.0,85236.0,0.5604898]
[1742477076193,0.0120702,85237.0,85236.0,0.68006483]
[1742477077318,0.0120702,85237.0,85236.0,2.18006483]
[1742477077517,0.0003392,85237.0,85236.0,2.18006483]
[1742477078433,0.0003392,85237.0,85236.0,0.75926483]
[1742477078782,0.0003392,85237.0,85236.0,2.67416483]
[1742477078977,0.0003392,85237.0,85236.0,2.67316483]
[1742477079181,0.0003392,85237.0,85236.0,2.67416483]
[1742477079850,0.0003392,85237.0,85236.0,3.03500568]
[1742477080051,0.0003392,85237.0,85236.0,3.05594115]
[1742477080287,0.0003392,85237.0,85236.0,3.05694115]
[1742477080485,0.0003392,85237.0,85236.0,3.05794115]
[1742477080679,0.0003392,85237.0,85236.0,3.05694115]
[1742477081092,0.0492,85298.0,85248.0,0.0807]
[1742477081264,0.0492,85298.0,85250.0,0.13411588]
[1742477081604,0.01838857,85264.0,85250.0,0.54901588]
[1742477081756,0.01838857,85264.0,85250.0,2.04901588]
[1742477082527,0.01838857,85264.0,85250.0,2.06057036]
[1742477082699,0.01838857,85264.0,85250.0,2.14497036]
[1742477082903,0.01838857,85264.0,85250.0,2.15097036]
[1742477083280,0.01838857,85264.0,85250.0,2.14497036]
[1742477083460,0.01838857,85264.0,85250.0,2.15097036]
[1742477083651,0.01838857,85264.0,85250.0,2.14497036]
[1742477084059,0.01838857,85264.0,85250.0,2.45097036]
[1742477084280,0.01838857,85264.0,85250.0,2.47427294]
[1742477085122,0.01838857,85264.0,85250.0,2.48027294]
[1742477085718,0.00075513,85251.0,85250.0,2.47427294]
[1742477086152,0.00075513,85251.0,85250.0,2.47527294]
[1742477086757,0.00075513,85251.0,85250.0,2.60751294]
[1742477086965,0.00075513,85251.0,85250.0,2.60151294]
[1742477087159,0.00075513,85251.0,85250.0,2.60651294]
[1742477087455,0.00175513,85251.0,85250.0,2.60151294]
[1742477087856,0.00275513,85251.0,85250.0,2.60651294]
[1742477088158,0.00275513,85251.0,85250.0,2.60051294]
[1742477088559,0.00275513,85251.0,85250.0,2.60651294]
[1742477088956,0.00275513,85251.0,85250.0,2.60051294]
[1742477089378,0.00275513,85251.0,85250.0,2.55703503]
[1742477089572,0.00275513,85251.0,85250.0,2.17763503]
[1742477090591,0.00075513,85251.0,85250.0,2.17263503]
[1742477090797,0.00075513,85251.0,85250.0,2.17259503]
[1742477090956,0.00175513,85251.0,85250.0,2.17759503]
[1742477091187,0.00175513,85251.0,85250.0,2.17259503]
[1742477091358,0.00175513,85251.0,85250.0,2.16659503]
[1742477091561,0.00275513,85251.0,85250.0,2.17159503]
[1742477091813,0.00275513,85251.0,85250.0,2.17759503]
[1742477092363,0.00275513,85251.0,85250.0,2.04547503]
[1742477092579,0.00275513,85251.0,85250.0,2.19209588]
[1742477093017,0.00075513,85251.0,85250.0,2.18109588]
[1742477093191,0.00075513,85251.0,85250.0,2.18709588]
[1742477093392,0.00175513,85251.0,85250.0,2.56959588]
[1742477093592,0.00075513,85251.0,85250.0,2.48241588]
[1742477093835,0.00075513,85251.0,85250.0,2.61457588]
[1742477094035,0.00175513,85251.0,85250.0,2.62457588]
[1742477094357,0.00175513,85251.0,85250.0,2.61957588]
[1742477094531,0.00075513,85251.0,85250.0,2.61957588]
[1742477094692,0.00175513,85251.0,85250.0,2.61857588]
[1742477095099,0.00175513,85251.0,85250.0,2.62457588]
[1742477095549,0.00175513,85251.0,85250.0,2.61857588]
[1742477096011,0.00175513,85251.0,85250.0,2.62457588]
[1742477096214,0.00075513,85251.0,85250.0,2.61957588]
[1742477096413,0.00075513,85251.0,85250.0,2.61857588]
[1742477096760,0.00175513,85251.0,85250.0,3.31537588]
[1742477097132,0.00275513,85251.0,85250.0,3.32037588]
[1742477097335,0.00075513,85251.0,85250.0,3.87365588]
[1742477097784,0.00175513,85251.0,85250.0,3.87865588]
[1742477098159,0.00175513,85251.0,85250.0,3.87365588]
[1742477098390,0.00175513,85251.0,85250.0,3.86765588]
[1742477098789,0.00175513,85251.0,85250.0,3.03969588]
[1742477098992,0.00175513,85251.0,85250.0,3.17173588]
[1742477099215,0.00175513,85251.0,85250.0,3.17773588]
[1742477099534,0.00175513,85251.0,85250.0,2.99079588]
[1742477099737,0.00175513,85251.0,85250.0,3.11683588]
[1742477100016,0.00275513,85251.0,85250.0,3.12183588]
[1742477100219,0.00275513,85251.0,85250.0,3.12783588]
[1742477100453,0.00275513,85251.0,85250.0,3.13283588]
[1742477101277,0.00275513,85251.0,85250.0,3.30603588]
[1742477102085,0.00275513,85251.0,85250.0,3.30003588]
[1742477102776,0.047,85292.0,85264.0,0.0822]
[1742477102902,0.047,85292.0,85273.0,0.11957503]
[1742477103107,0.0055469,85291.0,85281.0,0.01454085]
[1742477103349,0.0055469,85291.0,85282.0,2.30993503]
[1742477103549,0.047,85292.0,85283.0,0.41214487]
[1742477103758,0.047,85292.0,85284.0,0.11957503]
[1742477103962,0.047,85292.0,85284.0,0.25169503]
[1742477104336,0.047,85292.0,85284.0,0.25182036]
[1742477104764,0.048,85292.0,85284.0,0.25182036]
[1742477104965,0.047,85292.0,85284.0,0.25182036]
[1742477105229,0.01838426,85291.0,85284.0,0.25182036]
[1742477105583,0.01838426,85291.0,85285.0,0.84860543]
[1742477105932,0.01838426,85291.0,85290.0,0.31454085]
[1742477106134,0.01838426,85291.0,85290.0,0.43411588]
[1742477106753,0.01838426,85291.0,85290.0,0.56639588]
[1742477107254,0.01838426,85291.0,85290.0,0.97854075]
[1742477107569,0.0453,85309.0,85291.0,0.01454085]
[1742477107776,0.0453,85309.0,85295.0,0.01454085]
[1742477107981,0.0183811,85299.0,85296.0,0.11957503]
[1742477108623,0.0183811,85299.0,85298.0,1.5]
[1742477108871,0.0183811,85299.0,85298.0,1.61957503]
[1742477110075,0.0183811,85299.0,85298.0,1.62057503]
[1742477111514,0.0453,85309.0,85298.0,1.62057503]
[1742477111717,0.0453,85309.0,85299.0,0.11957503]
[1742477112119,0.0453,85309.0,85300.0,0.13216]
[1742477112368,0.0453,85309.0,85301.0,0.11957503]
[1742477113679,0.0463,85309.0,85301.0,0.11957503]
[1742477114186,0.0453,85309.0,85301.0,0.11957503]
[1742477114710,0.01838064,85308.0,85301.0,0.11957503]
[1742477115086,0.00566655,85307.0,85301.0,0.11957503]
[1742477117566,0.00666655,85307.0,85301.0,0.11957503]
[1742477118145,0.00666655,85307.0,85302.0,1.5]
[1742477118508,0.00666655,85307.0,85303.0,0.11957503]
[1742477119101,0.001,85307.0,85304.0,1.5]
[1742477119306,0.001,85307.0,85305.0,0.12191934]
[1742477119665,0.01838064,85308.0,85305.0,0.12191934]
[1742477119864,0.001,85307.0,85305.0,0.12191934]
[1742477120392,0.01838064,85308.0,85305.0,0.12191934]
[1742477121172,0.01838064,85308.0,85305.0,0.11957503]
[1742477123857,0.01838064,85308.0,85305.0,0.12057503]
[1742477125642,0.01838064,85308.0,85306.0,1.5]
[1742477125842,0.01838064,85308.0,85307.0,0.12191921]
[1742477126561,0.01838064,85308.0,85307.0,1.62191921]
[1742477126757,0.01838064,85308.0,85307.0,1.61957503]
[1742477127180,0.01838064,85308.0,85307.0,1.62057503]
[1742477127381,0.01838064,85308.0,85307.0,1.61957503]
[1742477127786,0.01838064,85308.0,85307.0,1.62257503]
[1742477127988,0.01838064,85308.0,85307.0,1.62157503]
[1742477129061,0.01838064,85308.0,85307.0,1.61957503]
[1742477129467,0.01838064,85308.0,85307.0,1.62257503]
[1742477129595,0.01838064,85308.0,85307.0,1.62157503]
[1742477129802,0.01838064,85308.0,85307.0,1.61957503]
[1742477130003,0.01838064,85308.0,85307.0,1.62057503]
[1742477130316,0.01838064,85308.0,85307.0,1.62157503]
[1742477130516,0.01838064,85308.0,85307.0,1.62357503]
[1742477130925,0.01838064,85308.0,85307.0,1.61957503]
[1742477131333,0.01838064,85308.0,85307.0,1.62157503]
[1742477132350,0.01838064,85308.0,85307.0,1.62357503]
[1742477133297,0.01838064,85308.0,85307.0,2.18161503]
[1742477135811,0.0003394,85323.0,85308.0,0.31954085]
[1742477135923,0.0003394,85323.0,85322.0,0.13411588]
[1742477136294,0.0003394,85323.0,85322.0,2.26072075]
[1742477137296,0.0003394,85323.0,85322.0,2.26084608]
[1742477137713,0.0003394,85323.0,85322.0,2.26284608]
[1742477138134,0.0003394,85323.0,85322.0,2.26080608]
[1742477138455,0.0003394,85323.0,85322.0,2.26480608]
[1742477138884,0.0003394,85323.0,85322.0,2.26980608]
[1742477139636,0.0003394,85323.0,85322.0,2.29321009]
[1742477140213,0.0003394,85323.0,85322.0,2.16169009]
[1742477140420,0.0003394,85323.0,85322.0,2.29317009]
[1742477143005,0.0003394,85323.0,85322.0,2.21027009]
[1742477143224,0.0003394,85323.0,85322.0,2.07879009]
[1742477143433,0.0003394,85323.0,85322.0,2.17220523]
[1742477143600,0.0003394,85323.0,85322.0,0.67220523]
[1742477143979,0.0003394,85323.0,85322.0,2.17220523]
[1742477144978,0.0003394,85323.0,85322.0,2.16320523]
[1742477145233,0.0003394,85323.0,85322.0,2.16720523]
[1742477145565,0.0003394,85323.0,85322.0,2.39761123]
[1742477145966,0.0003394,85323.0,85322.0,2.40261123]
[1742477146377,0.0187155,85323.0,85322.0,2.40561123]
[1742477146877,0.0187155,85323.0,85322.0,2.40261123]
[1742477147079,0.0187155,85323.0,85322.0,2.40661123]
[1742477147503,0.0187155,85323.0,85322.0,2.41833123]
[1742477148716,0.0187155,85323.0,85322.0,2.97621123]
[1742477152030,0.0187155,85323.0,85322.0,2.98484324]
[1742477153716,0.0187155,85323.0,85322.0,2.97621123]
[1742477160348,0.0187155,85323.0,85322.0,2.99075208]
[1742477160771,0.0187155,85323.0,85322.0,3.06875208]
[1742477161330,0.0187155,85323.0,85322.0,3.05421123]
[1742477161553,0.0187155,85323.0,85322.0,3.05975208]
[1742477161696,0.0187155,85323.0,85322.0,3.06575208]
[1742477162342,0.0187155,85323.0,85322.0,2.65960721]
[1742477164072,0.0187155,85323.0,85322.0,2.58160721]
[1742477165888,0.0187155,85323.0,85322.0,2.43570636]
[1742477166071,0.0187155,85323.0,85322.0,2.56682636]
[1742477170410,0.1301394,85323.0,85301.0,0.005]
[1742477170610,0.0484,85300.0,85294.0,0.13128]
[1742477170816,0.2462,85296.0,85295.0,1.61957503]
[1742477171214,0.25432897,85296.0,85295.0,1.61957503]
[1742477171594,0.25432897,85296.0,85295.0,0.11957503]
[1742477171784,0.25432897,85296.0,85295.0,0.25085503]
[1742477171989,0.246204,85295.0,85294.0,0.005]
[1742477172188,0.246209,85293.0,85292.0,0.55784]
[1742477172391,0.25417719,85293.0,85292.0,0.55784]
[1742477174567,0.324027,85287.0,85286.0,0.10464496]
[1742477174967,0.33195263,85287.0,85286.0,0.10464496]
[1742477175189,0.35033734,85287.0,85286.0,0.10464496]
[1742477175997,0.35033734,85287.0,85286.0,5.375e-05]
[1742477176411,0.35033734,85287.0,85286.0,0.00105375]
[1742477179126,0.35033734,85287.0,85286.0,0.12062878]
[1742477179357,0.02631034,85287.0,85286.0,0.12062878]
[1742477179536,0.03803534,85287.0,85286.0,0.12062878]
[1742477179740,0.03803534,85287.0,85286.0,1.62062878]
[1742477179960,0.02631034,85287.0,85286.0,1.62062878]
[1742477180308,0.03803534,85287.0,85286.0,1.62062878]
[1742477181001,0.27253734,85287.0,85286.0,1.61962878]
[1742477181909,0.27253734,85287.0,85286.0,1.62062878]
[1742477182556,0.27253734,85287.0,85286.0,1.75178878]
[1742477182929,0.27253734,85287.0,85286.0,1.75195818]
[1742477183134,0.25415263,85287.0,85286.0,1.75195818]
[1742477184062,0.25415263,85287.0,85286.0,1.75191818]
[1742477186295,0.27253707,85287.0,85286.0,1.75191818]
[1742477187321,0.27253707,85287.0,85286.0,0.25191818]
[1742477189403,0.27253707,85287.0,85286.0,0.12079818]
[1742477189602,0.27253707,85287.0,85286.0,0.25175818]
[1742477191295,0.27253707,85287.0,85286.0,1.75175818]
[1742477192787,0.02631007,85287.0,85286.0,1.75175818]
[1742477193212,0.01838444,85287.0,85286.0,1.75175818]
[1742477193419,0.0262692,85287.0,85286.0,1.75175818]
[1742477194030,0.0262692,85287.0,85286.0,2.01252903]
[1742477194268,0.00788476,85287.0,85286.0,2.01252903]
[1742477194470,0.234496,85291.0,85287.0,0.24904185]
[1742477194809,0.246212,85293.0,85289.0,0.01454085]
[1742477194935,0.246212,85293.0,85290.0,0.35406903]
[1742477195136,0.00788476,85292.0,85290.0,0.35406903]
[1742477195809,0.246212,85293.0,85290.0,0.35406903]
[1742477196025,0.23448,85295.0,85292.0,0.234488]
[1742477196244,0.000339,85371.0,85289.0,0.24903185]
[1742477196245,0.011721,85316.0,85307.0,0.234447]
[1742477196465,0.234423,85316.0,85307.0,0.49666403]
[1742477196669,0.234425,85315.0,85307.0,0.49666403]
[1742477197291,0.325642,85317.0,85307.0,0.49666403]
[1742477197507,0.246148,85315.0,85307.0,0.48494203]
[1742477197939,0.0498,85308.0,85307.0,0.48494203]
[1742477198185,0.05768476,85308.0,85307.0,1.865367]
[1742477201191,0.05673549,85308.0,85307.0,0.48494203]
[1742477202492,0.05673549,85308.0,85307.0,0.25049503]
[1742477202874,0.29117949,85308.0,85307.0,0.25049503]
[1742477203309,0.05673549,85308.0,85307.0,0.25049503]
[1742477203508,0.05673549,85308.0,85307.0,0.48494203]
[1742477203690,0.07511599,85308.0,85307.0,0.48494203]
[1742477204436,0.07511599,85308.0,85307.0,0.35402203]
[1742477204620,0.07511599,85308.0,85307.0,0.49646403]
[1742477206534,0.07511599,85308.0,85307.0,0.48474203]
[1742477206845,0.07511599,85308.0,85307.0,1.98474203]
[1742477209073,0.30955999,85308.0,85307.0,0.13064]
[1742477209276,0.07511599,85308.0,85307.0,0.13064]
[1742477210031,0.30955999,85308.0,85307.0,0.13064]
[1742477211158,0.30955999,85308.0,85307.0,0.25021503]
[1742477212437,0.32128199,85308.0,85307.0,0.25021503]
[1742477212839,0.30290149,85308.0,85307.0,0.25021503]
[1742477213042,0.30290149,85308.0,85307.0,1.75021503]
[1742477213445,0.30290149,85308.0,85307.0,1.63064]
[1742477213961,0.246195,85298.0,85297.0,0.55804]
[1742477214197,0.234472,85298.0,85297.0,0.80825503]
[1742477214323,0.00798154,85298.0,85297.0,2.30825503]
[1742477214523,0.234468,85300.0,85297.0,2.30825503]
[1742477214738,0.234468,85300.0,85298.0,0.11957503]
[1742477215578,0.234469,85299.0,85298.0,0.11957503]
[1742477216010,0.234469,85299.0,85298.0,0.12157503]
[1742477216539,0.234469,85299.0,85298.0,0.25221503]
[1742477216695,0.246192,85299.0,85298.0,0.25221503]
[1742477216888,0.246192,85299.0,85298.0,0.12157503]
[1742477217439,0.246192,85299.0,85277.0,0.00883095]
[1742477217440,0.234502,85287.0,85286.0,0.13122315]
[1742477217618,0.246227,85287.0,85286.0,1.75079818]
[1742477218062,0.25419159,85287.0,85286.0,1.75079818]
[1742477218532,0.27257557,85287.0,85286.0,1.75079818]
[1742477218732,0.27257557,85287.0,85286.0,1.75279818]
[1742477219863,0.27257557,85287.0,85286.0,1.75283818]
[1742477220524,0.27257557,85287.0,85286.0,1.75483818]
[1742477224402,0.35427557,85287.0,85286.0,1.63514315]
[1742477224602,0.38119159,85287.0,85286.0,1.50422315]
[1742477225631,0.38119159,85287.0,85286.0,1.50222315]
[1742477225833,0.38119159,85287.0,85286.0,1.50022315]
[1742477226212,0.38219159,85287.0,85286.0,1.50022315]
[1742477227444,0.40057664,85287.0,85286.0,1.50022315]
[1742477230188,0.40057664,85287.0,85286.0,0.00022315]
[1742477232162,0.39957664,85287.0,85286.0,0.00022315]
[1742477232489,0.40057664,85287.0,85286.0,0.00022315]
[1742477234937,0.31887664,85287.0,85286.0,0.00022315]
[1742477249460,0.00896459,85287.0,85286.0,0.36602818]
[1742477249701,0.00896459,85287.0,85286.0,0.45468117]
[1742477249947,0.001,85287.0,85286.0,1.94262818]
[1742477250460,0.001,85287.0,85286.0,2.08628569]
[1742477250879,0.001,85287.0,85286.0,2.08828569]
[1742477251352,0.011723,85297.0,85293.0,0.234484]
[1742477251353,0.234475,85297.0,85293.0,0.234484]
[1742477251616,0.234475,85297.0,85294.0,0.11957503]
[1742477251788,0.00786064,85296.0,85294.0,0.35405703]
[1742477252366,0.26072201,85296.0,85294.0,0.11957503]
[1742477252793,0.23448,85295.0,85294.0,0.11957503]
[1742477253020,0.25286137,85296.0,85294.0,0.11957503]
[1742477253347,0.00786064,85295.0,85294.0,0.11957503]
[1742477253752,0.24234064,85295.0,85294.0,0.11957503]
[1742477255292,0.25406464,85295.0,85294.0,0.11957503]
[1742477255700,0.25506464,85295.0,85294.0,0.11957503]
[1742477256272,0.25406464,85295.0,85294.0,0.11957503]
[1742477256437,0.24234064,85295.0,85294.0,0.11957503]
[1742477257410,0.25406464,85295.0,85294.0,0.11957503]
[1742477257585,0.25406464,85295.0,85294.0,1.61957503]
[1742477258784,0.00786064,85295.0,85294.0,1.85405803]
[1742477259179,0.23448,85295.0,85294.0,1.61957503]
[1742477259600,0.01838337,85296.0,85294.0,1.61957503]
[1742477259782,0.00790532,85295.0,85294.0,2.17773503]
[1742477260000,0.24238532,85295.0,85294.0,2.17773503]
[1742477260183,0.23448,85295.0,85294.0,2.17873503]
[1742477260549,0.25410932,85295.0,85294.0,0.67873503]
[1742477260956,0.25410932,85295.0,85294.0,0.67973503]
[1742477261506,0.25410932,85295.0,85294.0,0.68173503]
[1742477261729,0.00790532,85295.0,85294.0,0.91621803]
[1742477261931,0.25286137,85296.0,85294.0,0.68173503]
[1742477262131,0.00793996,85295.0,85294.0,0.68173503]
[1742477262337,0.24217722,85295.0,85294.0,0.68073503]
[1742477262535,0.24217722,85295.0,85294.0,0.68173503]
[1742477263078,0.24217722,85295.0,85294.0,0.68073503]
[1742477263501,0.24217722,85295.0,85294.0,0.68273503]
[1742477265019,0.25390122,85295.0,85294.0,0.68273503]
[1742477265162,0.25390122,85295.0,85294.0,0.67973503]
[1742477265596,0.25390122,85295.0,85294.0,0.68173503]
[1742477265804,0.25390122,85295.0,85294.0,2.18173503]